[Event "Titled Tuesday Blitz February 07 Late 2023"]
[White "Fiorito, Joaquin"]
[Black "Ramirez, Alejandro"]
[WhiteFideId "180173"]
[BlackFideId "6500617"]
[WhiteElo "2405"]
[BlackElo "2572"]
[Result "1-0"]
[Round "10"]
[TimeControl "180+2"]
[Date "2023.02.07"]
[WhiteClock "0:00:59"]
[BlackClock "0:01:23"]

1. d4 {[%clk 0:03:00]}  Nf6 {[%clk 0:02:57]} 2. Nc3 {[%clk 0:03:01]}  d5 {[%clk 0:02:56]} 3. Bf4 {[%clk 0:03:01]}  a6 {[%clk 0:02:57]} 4. e3 {[%clk 0:03:02]}  h6 {[%clk 0:02:57]} 5. h4 {[%clk 0:03:00]}  b5 {[%clk 0:02:57]} 6. h5 {[%clk 0:02:38]}  c5 {[%clk 0:02:47]} 7. dxc5 {[%clk 0:02:32]}  Nc6 {[%clk 0:02:47]} 8. Nf3 {[%clk 0:02:30]}  Bg4 {[%clk 0:02:47]} 9. Be2 {[%clk 0:02:30]}  e6 {[%clk 0:02:44]} 10. Nd4 {[%clk 0:02:30]}  Bxe2 {[%clk 0:02:43]} 11. Qxe2 {[%clk 0:02:31]}  Qd7 {[%clk 0:02:16]} 12. Nxc6 {[%clk 0:02:31]}  Qxc6 {[%clk 0:02:17]} 13. b4 {[%clk 0:02:32]}  d4 {[%clk 0:02:08]} 14. exd4 {[%clk 0:02:30]}  Qxg2 {[%clk 0:02:09]} 15. O-O-O {[%clk 0:02:31]}  Nd5 {[%clk 0:01:55]} 16. Nxd5 {[%clk 0:02:18]}  Qxd5 {[%clk 0:01:56]} 17. Kb2 {[%clk 0:02:15]}  Be7 {[%clk 0:01:56]} 18. Be5 {[%clk 0:02:15]}  f6 {[%clk 0:01:53]} 19. Bf4 {[%clk 0:02:14]}  a5 {[%clk 0:01:52]} 20. Qxb5+ {[%clk 0:02:13]}  Kf7 {[%clk 0:01:52]} 21. bxa5 {[%clk 0:01:36]}  e5 {[%clk 0:01:47]} 22. dxe5 {[%clk 0:01:35]}  fxe5 {[%clk 0:01:46]} 23. Rxd5 {[%clk 0:01:35]}  Rhb8 {[%clk 0:01:46]} 24. Qxb8 {[%clk 0:01:31]}  Rxb8+ {[%clk 0:01:46]} 25. Ka3 {[%clk 0:01:28]}  exf4 {[%clk 0:01:47]} 26. Rf5+ {[%clk 0:01:27]}  Ke6 {[%clk 0:01:47]} 27. Rxf4 {[%clk 0:01:25]}  Bxc5+ {[%clk 0:01:45]} 28. Ka4 {[%clk 0:01:26]}  Ke5 {[%clk 0:01:46]} 29. Rc4 {[%clk 0:01:24]}  Bxf2 {[%clk 0:01:46]} 30. Rf1 {[%clk 0:01:23]}  Bd4 {[%clk 0:01:41]} 31. c3 {[%clk 0:01:22]}  Ba7 {[%clk 0:01:39]} 32. Rg4 {[%clk 0:01:19]}  Rb7 {[%clk 0:01:37]} 33. a6 {[%clk 0:01:05]}  Rc7 {[%clk 0:01:37]} 34. c4 {[%clk 0:01:02]}  Kd6 {[%clk 0:01:26]} 35. Rf5 {[%clk 0:00:59]}  Bd4 {[%clk 0:01:23]} 36. Rd5+ {[%clk 0:00:59]} 1-0


[Site "https://www.chess.com"]

[Event "Titled Tuesday Blitz February 07 Late 2023"]
[White "Toncheva, Nadya"]
[Black "Gutenev, Alexander"]
[WhiteFideId "2924056"]
[BlackFideId "4195540"]
[WhiteElo "2295"]
[BlackElo "2455"]
[Result "0-1"]
[Round "10"]
[TimeControl "180+2"]
[Date "2023.02.07"]
[WhiteClock "0:00:16"]
[BlackClock "0:01:23"]

1. e4 {[%clk 0:03:00]}  g6 {[%clk 0:02:40]} 2. d4 {[%clk 0:03:00]}  Bg7 {[%clk 0:02:40]} 3. Nc3 {[%clk 0:03:00]}  c6 {[%clk 0:02:39]} 4. Nf3 {[%clk 0:02:59]}  d5 {[%clk 0:02:37]} 5. e5 {[%clk 0:02:54]}  f6 {[%clk 0:02:37]} 6. Bf4 {[%clk 0:02:50]}  Bg4 {[%clk 0:02:36]} 7. Be2 {[%clk 0:02:50]}  Nd7 {[%clk 0:02:35]} 8. exf6 {[%clk 0:02:45]}  Ngxf6 {[%clk 0:02:34]} 9. h3 {[%clk 0:02:44]}  Bxf3 {[%clk 0:02:07]} 10. Bxf3 {[%clk 0:02:45]}  O-O {[%clk 0:02:07]} 11. O-O {[%clk 0:02:42]}  Ne4 {[%clk 0:02:07]} 12. Bh2 {[%clk 0:02:35]}  Nxc3 {[%clk 0:02:05]} 13. bxc3 {[%clk 0:02:36]}  e5 {[%clk 0:02:06]} 14. Bg4 {[%clk 0:02:30]}  e4 {[%clk 0:01:55]} 15. Rb1 {[%clk 0:02:29]}  Nb6 {[%clk 0:01:54]} 16. Bg3 {[%clk 0:02:02]}  h5 {[%clk 0:01:53]} 17. Be2 {[%clk 0:01:58]}  Qe7 {[%clk 0:01:51]} 18. Qd2 {[%clk 0:01:53]}  Rad8 {[%clk 0:01:47]} 19. Rfe1 {[%clk 0:01:46]}  Kh7 {[%clk 0:01:43]} 20. Bf1 {[%clk 0:01:45]}  Na4 {[%clk 0:01:43]} 21. Rb3 {[%clk 0:01:26]}  b5 {[%clk 0:01:43]} 22. Bf4 {[%clk 0:01:20]}  Nb6 {[%clk 0:01:37]} 23. Bg5 {[%clk 0:01:17]}  Bf6 {[%clk 0:01:37]} 24. Bxf6 {[%clk 0:01:15]}  Qxf6 {[%clk 0:01:37]} 25. Rbb1 {[%clk 0:01:14]}  a5 {[%clk 0:01:36]} 26. Re3 {[%clk 0:01:12]}  a4 {[%clk 0:01:35]} 27. Rg3 {[%clk 0:01:08]}  Rf7 {[%clk 0:01:33]} 28. Re1 {[%clk 0:00:36]}  Rdf8 {[%clk 0:01:32]} 29. f3 {[%clk 0:00:36]}  Qh4 {[%clk 0:01:32]} 30. Kh2 {[%clk 0:00:30]}  exf3 {[%clk 0:01:31]} 31. gxf3 {[%clk 0:00:24]}  Rxf3 {[%clk 0:01:31]} 32. Rxf3 {[%clk 0:00:22]}  Rxf3 {[%clk 0:01:31]} 33. Bg2 {[%clk 0:00:22]}  Qg3+ {[%clk 0:01:28]} 34. Kh1 {[%clk 0:00:21]}  Rf2 {[%clk 0:01:24]} 35. Re7+ {[%clk 0:00:20]}  Kg8 {[%clk 0:01:24]} 36. Re8+ {[%clk 0:00:15]}  Kf7 {[%clk 0:01:24]} 37. Rf8+ {[%clk 0:00:16]}  Kxf8 {[%clk 0:01:24]} 38. Qh6+ {[%clk 0:00:16]}  Kg8 {[%clk 0:01:23]} 0-1


[Site "https://www.chess.com"]

[Event "Titled Tuesday Blitz February 07 Late 2023"]
[White "Gurevich, Dmitry"]
[Black "Rustemov, Alexander"]
[WhiteFideId "2000407"]
[BlackFideId "4119002"]
[WhiteElo "2393"]
[BlackElo "2525"]
[Result "1/2-1/2"]
[Round "10"]
[TimeControl "180+2"]
[Date "2023.02.07"]
[WhiteClock "0:00:03"]
[BlackClock "0:00:27"]

1. d4 {[%clk 0:03:00]}  g6 {[%clk 0:02:58]} 2. c4 {[%clk 0:03:00]}  Bg7 {[%clk 0:02:58]} 3. e4 {[%clk 0:03:00]}  d6 {[%clk 0:02:57]} 4. Nc3 {[%clk 0:02:59]}  Nc6 {[%clk 0:02:54]} 5. Be3 {[%clk 0:02:57]}  e5 {[%clk 0:02:53]} 6. d5 {[%clk 0:02:56]}  Nd4 {[%clk 0:02:49]} 7. Nge2 {[%clk 0:02:56]}  Nxe2 {[%clk 0:02:45]} 8. Bxe2 {[%clk 0:02:55]}  Bh6 {[%clk 0:02:37]} 9. Bxh6 {[%clk 0:02:47]}  Nxh6 {[%clk 0:02:37]} 10. Qd2 {[%clk 0:02:47]}  Ng8 {[%clk 0:02:35]} 11. O-O {[%clk 0:02:39]}  Nf6 {[%clk 0:02:31]} 12. f4 {[%clk 0:02:37]}  Qe7 {[%clk 0:02:25]} 13. fxe5 {[%clk 0:02:15]}  Qxe5 {[%clk 0:02:25]} 14. Nb5 {[%clk 0:02:08]}  O-O {[%clk 0:02:10]} 15. Nxc7 {[%clk 0:02:03]}  Rb8 {[%clk 0:02:06]} 16. Qf4 {[%clk 0:01:54]}  Nxe4 {[%clk 0:01:59]} 17. Qxe5 {[%clk 0:01:51]}  dxe5 {[%clk 0:02:00]} 18. b4 {[%clk 0:01:35]}  Bd7 {[%clk 0:01:54]} 19. Bd3 {[%clk 0:01:23]}  Nc3 {[%clk 0:01:46]} 20. Rfc1 {[%clk 0:01:19]}  Na4 {[%clk 0:01:44]} 21. c5 {[%clk 0:01:16]}  f5 {[%clk 0:01:28]} 22. d6 {[%clk 0:01:12]}  Kg7 {[%clk 0:01:26]} 23. b5 {[%clk 0:01:01]}  e4 {[%clk 0:01:24]} 24. Bf1 {[%clk 0:00:52]}  Rf6 {[%clk 0:00:52]} 25. c6 {[%clk 0:00:35]}  Rxd6 {[%clk 0:00:52]} 26. cxd7 {[%clk 0:00:33]}  Rxd7 {[%clk 0:00:53]} 27. Ne6+ {[%clk 0:00:28]}  Kf6 {[%clk 0:00:53]} 28. Nc5 {[%clk 0:00:28]}  Nxc5 {[%clk 0:00:52]} 29. Rxc5 {[%clk 0:00:27]}  Rbd8 {[%clk 0:00:52]} 30. Rac1 {[%clk 0:00:20]}  g5 {[%clk 0:00:48]} 31. g4 {[%clk 0:00:10]}  f4 {[%clk 0:00:46]} 32. Rf5+ {[%clk 0:00:09]}  Kg6 {[%clk 0:00:46]} 33. Rcc5 {[%clk 0:00:07]}  h6 {[%clk 0:00:46]} 34. h4 {[%clk 0:00:07]}  Rd1 {[%clk 0:00:38]} 35. hxg5 {[%clk 0:00:06]}  e3 {[%clk 0:00:38]} 36. Rce5 {[%clk 0:00:05]}  R8d2 {[%clk 0:00:31]} 37. Rf6+ {[%clk 0:00:03]}  Kg7 {[%clk 0:00:31]} 38. Re7+ {[%clk 0:00:03]}  Kg8 {[%clk 0:00:31]} 39. Rff7 {[%clk 0:00:03]}  hxg5 {[%clk 0:00:25]} 40. Rg7+ {[%clk 0:00:02]}  Kf8 {[%clk 0:00:25]} 41. Rgf7+ {[%clk 0:00:02]}  Kg8 {[%clk 0:00:25]} 42. Rg7+ {[%clk 0:00:03]}  Kf8 {[%clk 0:00:26]} 43. Rgf7+ {[%clk 0:00:03]}  Kg8 {[%clk 0:00:27]} 1/2-1/2


[Site "https://www.chess.com"]

[Event "Titled Tuesday Blitz February 07 Late 2023"]
[White "Di Berardino, Diego Rafael"]
[Black "Veiga, Jose Francisco R P Neves"]
[WhiteFideId "2105446"]
[BlackFideId "1930087"]
[WhiteElo "2479"]
[BlackElo "2406"]
[Result "0-1"]
[Round "10"]
[TimeControl "180+2"]
[Date "2023.02.07"]
[WhiteClock "0:00:01"]
[BlackClock "0:01:00"]

1. e4 {[%clk 0:03:00]}  c6 {[%clk 0:02:57]} 2. d4 {[%clk 0:03:00]}  g6 {[%clk 0:02:57]} 3. Nc3 {[%clk 0:02:58]}  Bg7 {[%clk 0:02:57]} 4. Nf3 {[%clk 0:02:55]}  d5 {[%clk 0:02:57]} 5. h3 {[%clk 0:02:55]}  dxe4 {[%clk 0:02:58]} 6. Nxe4 {[%clk 0:02:55]}  Nf6 {[%clk 0:02:58]} 7. Nxf6+ {[%clk 0:02:54]}  exf6 {[%clk 0:02:59]} 8. Bd3 {[%clk 0:02:48]}  O-O {[%clk 0:02:56]} 9. O-O {[%clk 0:02:45]}  a5 {[%clk 0:02:57]} 10. Re1 {[%clk 0:02:44]}  Na6 {[%clk 0:02:56]} 11. c3 {[%clk 0:02:43]}  Nc7 {[%clk 0:02:55]} 12. Bf4 {[%clk 0:02:43]}  Nd5 {[%clk 0:02:54]} 13. Bg3 {[%clk 0:02:43]}  Be6 {[%clk 0:02:52]} 14. Nd2 {[%clk 0:02:39]}  a4 {[%clk 0:02:47]} 15. Ne4 {[%clk 0:02:37]}  a3 {[%clk 0:02:45]} 16. Qc2 {[%clk 0:02:17]}  Qa5 {[%clk 0:02:41]} 17. b4 {[%clk 0:02:13]}  Qb6 {[%clk 0:02:28]} 18. Rab1 {[%clk 0:02:08]}  f5 {[%clk 0:02:25]} 19. Nc5 {[%clk 0:02:05]}  f4 {[%clk 0:02:25]} 20. Bh2 {[%clk 0:01:58]}  Rfe8 {[%clk 0:02:19]} 21. Nxe6 {[%clk 0:01:52]}  Rxe6 {[%clk 0:02:20]} 22. Rxe6 {[%clk 0:01:52]}  fxe6 {[%clk 0:02:20]} 23. Qd2 {[%clk 0:01:39]}  e5 {[%clk 0:02:14]} 24. c4 {[%clk 0:01:08]}  Qxd4 {[%clk 0:02:07]} 25. cxd5 {[%clk 0:01:08]}  e4 {[%clk 0:02:08]} 26. dxc6 {[%clk 0:00:57]}  bxc6 {[%clk 0:02:06]} 27. Rd1 {[%clk 0:00:53]}  exd3 {[%clk 0:02:05]} 28. Bxf4 {[%clk 0:00:51]}  Rd8 {[%clk 0:01:59]} 29. Bg5 {[%clk 0:00:30]}  Rf8 {[%clk 0:01:47]} 30. Be3 {[%clk 0:00:29]}  Qb2 {[%clk 0:01:46]} 31. Bc5 {[%clk 0:00:13]}  Re8 {[%clk 0:01:36]} 32. g3 {[%clk 0:00:04]}  h6 {[%clk 0:01:29]} 33. Kg2 {[%clk 0:00:04]}  Kh7 {[%clk 0:01:27]} 34. h4 {[%clk 0:00:05]}  h5 {[%clk 0:01:26]} 35. Qxd3 {[%clk 0:00:04]}  Qxa2 {[%clk 0:01:25]} 36. Qd7 {[%clk 0:00:04]}  Re5 {[%clk 0:00:59]} 37. Bd4 {[%clk 0:00:01]}  Qd5+ {[%clk 0:00:59]} 38. Qxd5 {[%clk 0:00:01]}  Rxd5 {[%clk 0:01:00]} 39. Bxg7 {[%clk 0:00:01]}  Rxd1 {[%clk 0:01:00]} 0-1


[Site "https://www.chess.com"]

[Event "Titled Tuesday Blitz February 07 Late 2023"]
[White "ArchibaldCerveza29"]
[Black "Czopor, Maciej"]
[BlackFideId "21805431"]
[WhiteElo "2520"]
[BlackElo "2385"]
[Result "0-1"]
[Round "10"]
[TimeControl "180+2"]
[Date "2023.02.07"]
[WhiteClock "0:00:03"]
[BlackClock "0:00:02"]

1. e4 {[%clk 0:03:00]}  c6 {[%clk 0:02:59]} 2. d4 {[%clk 0:02:59]}  g6 {[%clk 0:03:00]} 3. Nc3 {[%clk 0:02:55]}  d5 {[%clk 0:03:01]} 4. Nf3 {[%clk 0:02:53]}  Bg7 {[%clk 0:03:01]} 5. h3 {[%clk 0:02:53]}  dxe4 {[%clk 0:03:01]} 6. Nxe4 {[%clk 0:02:54]}  Nf6 {[%clk 0:03:02]} 7. Bd3 {[%clk 0:02:53]}  O-O {[%clk 0:03:01]} 8. O-O {[%clk 0:02:53]}  Nbd7 {[%clk 0:03:01]} 9. Ng3 {[%clk 0:02:51]}  Qc7 {[%clk 0:02:57]} 10. Re1 {[%clk 0:02:50]}  Re8 {[%clk 0:02:51]} 11. Ne2 {[%clk 0:02:47]}  e5 {[%clk 0:02:43]} 12. dxe5 {[%clk 0:02:48]}  Nxe5 {[%clk 0:02:44]} 13. Nxe5 {[%clk 0:02:49]}  Qxe5 {[%clk 0:02:44]} 14. c3 {[%clk 0:02:37]}  Bf5 {[%clk 0:02:17]} 15. Bf4 {[%clk 0:02:34]}  Qa5 {[%clk 0:02:08]} 16. Bxf5 {[%clk 0:02:30]}  Qxf5 {[%clk 0:02:09]} 17. Bg3 {[%clk 0:02:30]}  Ne4 {[%clk 0:01:58]} 18. Nd4 {[%clk 0:02:27]}  Qd5 {[%clk 0:01:38]} 19. Bf4 {[%clk 0:02:20]}  Rad8 {[%clk 0:01:19]} 20. Qb3 {[%clk 0:02:17]}  Bxd4 {[%clk 0:01:11]} 21. cxd4 {[%clk 0:01:53]}  Qxb3 {[%clk 0:01:11]} 22. axb3 {[%clk 0:01:54]}  a6 {[%clk 0:01:10]} 23. Rad1 {[%clk 0:01:20]}  Nf6 {[%clk 0:01:01]} 24. Bg5 {[%clk 0:01:16]}  Rxe1+ {[%clk 0:00:58]} 25. Rxe1 {[%clk 0:01:16]}  Re8 {[%clk 0:00:59]} 26. Re5 {[%clk 0:01:07]}  Rxe5 {[%clk 0:00:49]} 27. dxe5 {[%clk 0:01:08]}  Nd7 {[%clk 0:00:43]} 28. f4 {[%clk 0:00:11]}  Nc5 {[%clk 0:00:41]} 29. Bd8 {[%clk 0:00:11]}  Ne6 {[%clk 0:00:31]} 30. Bg5 {[%clk 0:00:10]}  Nd4 {[%clk 0:00:18]} 31. b4 {[%clk 0:00:10]}  Kf8 {[%clk 0:00:12]} 32. Kf2 {[%clk 0:00:08]}  Nc2 {[%clk 0:00:12]} 33. Kf3 {[%clk 0:00:05]}  Nxb4 {[%clk 0:00:13]} 34. Ke4 {[%clk 0:00:05]}  Ke8 {[%clk 0:00:11]} 35. Bh4 {[%clk 0:00:05]}  Kd7 {[%clk 0:00:11]} 36. Be1 {[%clk 0:00:05]}  Nd5 {[%clk 0:00:10]} 37. g4 {[%clk 0:00:05]}  Nc7 {[%clk 0:00:03]} 38. f5 {[%clk 0:00:05]}  Nb5 {[%clk 0:00:03]} 39. Bb4 {[%clk 0:00:04]}  b6 {[%clk 0:00:02]} 40. h4 {[%clk 0:00:02]}  a5 {[%clk 0:00:02]} 41. Bd2 {[%clk 0:00:02]}  a4 {[%clk 0:00:02]} 42. h5 {[%clk 0:00:02]}  gxh5 {[%clk 0:00:02]} 43. gxh5 {[%clk 0:00:03]}  a3 {[%clk 0:00:03]} 44. bxa3 {[%clk 0:00:04]}  Nxa3 {[%clk 0:00:03]} 45. h6 {[%clk 0:00:04]}  Nc4 {[%clk 0:00:03]} 46. Bg5 {[%clk 0:00:04]}  b5 {[%clk 0:00:02]} 47. Kd4 {[%clk 0:00:04]}  Nb6 {[%clk 0:00:02]} 48. Kc5 {[%clk 0:00:04]}  Nd5 {[%clk 0:00:02]} 49. Bd2 {[%clk 0:00:03]}  Ne7 {[%clk 0:00:01]} 50. f6 {[%clk 0:00:02]}  Ng6 {[%clk 0:00:01]} 51. Kd4 {[%clk 0:00:01]}  Ke6 {[%clk 0:00:02]} 52. Bb4 {[%clk 0:00:02]}  Nxe5 {[%clk 0:00:02]} 53. Be7 {[%clk 0:00:02]}  Ng4 {[%clk 0:00:02]} 54. Bf8 {[%clk 0:00:02]}  Nxf6 {[%clk 0:00:02]} 55. Bg7 {[%clk 0:00:03]}  Ng4 {[%clk 0:00:02]} 56. Ke4 {[%clk 0:00:03]}  f5+ {[%clk 0:00:02]} 57. Kd4 {[%clk 0:00:03]}  Kf7 {[%clk 0:00:02]} 0-1


[Site "https://www.chess.com"]

[Event "Titled Tuesday Blitz February 07 Late 2023"]
[White "Reprintsev, Alexander"]
[Black "Sielecki, Christof"]
[WhiteFideId "14100541"]
[BlackFideId "4620437"]
[WhiteElo "2253"]
[BlackElo "2419"]
[Result "0-1"]
[Round "10"]
[TimeControl "180+2"]
[Date "2023.02.07"]
[WhiteClock "0:01:14"]
[BlackClock "0:01:13"]

1. e4 {[%clk 0:03:00]}  c5 {[%clk 0:02:58]} 2. b3 {[%clk 0:03:00]}  Nc6 {[%clk 0:02:57]} 3. Bb2 {[%clk 0:03:00]}  a6 {[%clk 0:02:57]} 4. Nf3 {[%clk 0:02:58]}  e6 {[%clk 0:02:58]} 5. Be2 {[%clk 0:02:55]}  d5 {[%clk 0:02:49]} 6. exd5 {[%clk 0:02:54]}  exd5 {[%clk 0:02:50]} 7. d4 {[%clk 0:02:54]}  Nf6 {[%clk 0:02:48]} 8. O-O {[%clk 0:02:53]}  Be7 {[%clk 0:02:46]} 9. dxc5 {[%clk 0:02:53]}  Bxc5 {[%clk 0:02:45]} 10. c4 {[%clk 0:02:43]}  dxc4 {[%clk 0:02:35]} 11. Qxd8+ {[%clk 0:02:42]}  Nxd8 {[%clk 0:02:32]} 12. Nbd2 {[%clk 0:02:33]}  cxb3 {[%clk 0:02:29]} 13. Nxb3 {[%clk 0:02:33]}  Be7 {[%clk 0:02:29]} 14. Rfe1 {[%clk 0:02:28]}  Ne6 {[%clk 0:02:25]} 15. Ne5 {[%clk 0:02:07]}  O-O {[%clk 0:02:20]} 16. Bf3 {[%clk 0:02:08]}  Rd8 {[%clk 0:02:06]} 17. Rad1 {[%clk 0:02:00]}  Kf8 {[%clk 0:02:05]} 18. Na5 {[%clk 0:01:53]}  Bb4 {[%clk 0:01:52]} 19. Rxd8+ {[%clk 0:01:51]}  Nxd8 {[%clk 0:01:52]} 20. Rd1 {[%clk 0:01:27]}  Bxa5 {[%clk 0:01:48]} 21. Nc4 {[%clk 0:01:24]}  Bc7 {[%clk 0:01:34]} 22. Be5 {[%clk 0:01:24]}  Bxe5 {[%clk 0:01:13]} 23. Rxd8+ {[%clk 0:01:14]}  Ke7 {[%clk 0:01:13]} 0-1


[Site "https://www.chess.com"]

[Event "Titled Tuesday Blitz February 07 Late 2023"]
[White "Jimenez Almeida, Luis David"]
[Black "Cori T., Deysi"]
[WhiteFideId "22242244"]
[BlackFideId "3801934"]
[WhiteElo "2242"]
[BlackElo "2362"]
[Result "0-1"]
[Round "10"]
[TimeControl "180+2"]
[Date "2023.02.07"]
[WhiteClock "0:00:01"]
[BlackClock "0:00:34"]

1. e4 {[%clk 0:02:59]}  e6 {[%clk 0:03:00]} 2. Nf3 {[%clk 0:02:54]}  Ne7 {[%clk 0:02:57]} 3. d4 {[%clk 0:02:49]}  d5 {[%clk 0:02:57]} 4. e5 {[%clk 0:02:49]}  c5 {[%clk 0:02:56]} 5. c3 {[%clk 0:02:49]}  Nbc6 {[%clk 0:02:57]} 6. Bd3 {[%clk 0:02:46]}  cxd4 {[%clk 0:02:56]} 7. cxd4 {[%clk 0:02:46]}  Nf5 {[%clk 0:02:56]} 8. Bxf5 {[%clk 0:02:45]}  exf5 {[%clk 0:02:57]} 9. Nc3 {[%clk 0:02:45]}  Be7 {[%clk 0:02:56]} 10. O-O {[%clk 0:02:44]}  Be6 {[%clk 0:02:57]} 11. a3 {[%clk 0:02:42]}  g5 {[%clk 0:02:56]} 12. b4 {[%clk 0:02:36]}  Rg8 {[%clk 0:02:55]} 13. Bb2 {[%clk 0:02:32]}  f4 {[%clk 0:02:48]} 14. Na4 {[%clk 0:02:14]}  Bg4 {[%clk 0:02:21]} 15. Qd3 {[%clk 0:02:04]}  Rg6 {[%clk 0:02:20]} 16. Rac1 {[%clk 0:01:55]}  Rc8 {[%clk 0:02:17]} 17. Nc5 {[%clk 0:01:48]}  b6 {[%clk 0:02:16]} 18. Nb7 {[%clk 0:01:13]}  Qd7 {[%clk 0:02:11]} 19. Nd6+ {[%clk 0:01:13]}  Bxd6 {[%clk 0:02:08]} 20. exd6 {[%clk 0:01:14]}  Qxd6 {[%clk 0:01:36]} 21. Ne5 {[%clk 0:01:12]}  Nxe5 {[%clk 0:01:35]} 22. dxe5 {[%clk 0:01:10]}  Qd8 {[%clk 0:01:35]} 23. Rxc8 {[%clk 0:00:46]}  Bxc8 {[%clk 0:01:36]} 24. Rd1 {[%clk 0:00:32]}  Be6 {[%clk 0:01:35]} 25. Qa6 {[%clk 0:00:31]}  Qd7 {[%clk 0:01:34]} 26. Rc1 {[%clk 0:00:31]}  Kf8 {[%clk 0:01:33]} 27. Bd4 {[%clk 0:00:28]}  Rg8 {[%clk 0:01:30]} 28. Qd3 {[%clk 0:00:26]}  Kg7 {[%clk 0:01:30]} 29. Qd2 {[%clk 0:00:18]}  Rc8 {[%clk 0:01:28]} 30. g3 {[%clk 0:00:18]}  Rxc1+ {[%clk 0:01:04]} 31. Qxc1 {[%clk 0:00:19]}  Qb5 {[%clk 0:01:03]} 32. gxf4 {[%clk 0:00:18]}  Qd3 {[%clk 0:01:03]} 33. Be3 {[%clk 0:00:15]}  Bh3 {[%clk 0:01:00]} 34. e6 {[%clk 0:00:07]}  Qe4 {[%clk 0:00:56]} 35. Qc3+ {[%clk 0:00:06]}  f6 {[%clk 0:00:49]} 36. Qc7+ {[%clk 0:00:03]}  Kg6 {[%clk 0:00:47]} 37. f5+ {[%clk 0:00:02]}  Kh5 {[%clk 0:00:34]} 38. Qxh7+ {[%clk 0:00:02]}  Kg4 {[%clk 0:00:34]} 39. f3+ {[%clk 0:00:01]}  Qxf3 {[%clk 0:00:34]} 0-1


[Site "https://www.chess.com"]

[Event "Titled Tuesday Blitz February 07 Late 2023"]
[White "Chor, Kevin"]
[Black "Fernandez Garcia, Gumersindo"]
[WhiteFideId "2090740"]
[BlackFideId "24516740"]
[WhiteElo "1944"]
[BlackElo "2160"]
[Result "1-0"]
[Round "10"]
[TimeControl "180+2"]
[Date "2023.02.07"]
[WhiteClock "0:00:09"]
[BlackClock "0:00:10"]

1. e4 {[%clk 0:02:59]}  c5 {[%clk 0:02:56]} 2. Nf3 {[%clk 0:02:54]}  g6 {[%clk 0:02:55]} 3. d4 {[%clk 0:02:53]}  cxd4 {[%clk 0:02:55]} 4. Nxd4 {[%clk 0:02:54]}  Bg7 {[%clk 0:02:55]} 5. Nc3 {[%clk 0:02:55]}  Nc6 {[%clk 0:02:54]} 6. Be3 {[%clk 0:02:52]}  Nf6 {[%clk 0:02:54]} 7. Bc4 {[%clk 0:02:52]}  O-O {[%clk 0:02:53]} 8. Bb3 {[%clk 0:02:52]}  d6 {[%clk 0:02:52]} 9. f3 {[%clk 0:02:51]}  Bd7 {[%clk 0:02:51]} 10. Qd2 {[%clk 0:02:51]}  Rc8 {[%clk 0:02:51]} 11. O-O-O {[%clk 0:02:50]}  Nxd4 {[%clk 0:02:51]} 12. Bxd4 {[%clk 0:02:51]}  b5 {[%clk 0:02:51]} 13. Nd5 {[%clk 0:02:42]}  Nxd5 {[%clk 0:02:50]} 14. Bxg7 {[%clk 0:02:40]}  Kxg7 {[%clk 0:02:50]} 15. exd5 {[%clk 0:02:35]}  a5 {[%clk 0:02:50]} 16. a3 {[%clk 0:02:32]}  Kg8 {[%clk 0:02:50]} 17. g4 {[%clk 0:02:20]}  b4 {[%clk 0:02:48]} 18. h4 {[%clk 0:01:44]}  a4 {[%clk 0:02:44]} 19. Ba2 {[%clk 0:01:37]}  b3 {[%clk 0:02:43]} 20. Bb1 {[%clk 0:01:37]}  bxc2 {[%clk 0:02:43]} 21. Bxc2 {[%clk 0:01:38]}  Qb6 {[%clk 0:02:29]} 22. Kb1 {[%clk 0:01:29]}  Rb8 {[%clk 0:02:03]} 23. Qd4 {[%clk 0:01:29]}  Qb7 {[%clk 0:01:59]} 24. h5 {[%clk 0:01:23]}  e5 {[%clk 0:01:16]} 25. dxe6 {[%clk 0:01:15]}  Bxe6 {[%clk 0:01:16]} 26. hxg6 {[%clk 0:01:07]}  fxg6 {[%clk 0:01:15]} 27. Bxg6 {[%clk 0:01:03]}  Qg7 {[%clk 0:00:28]} 28. Bxh7+ {[%clk 0:00:55]}  Kf7 {[%clk 0:00:25]} 29. Qxg7+ {[%clk 0:00:39]}  Kxg7 {[%clk 0:00:26]} 30. Rxd6 {[%clk 0:00:40]}  Bb3 {[%clk 0:00:26]} 31. Rg6+ {[%clk 0:00:35]}  Kf7 {[%clk 0:00:26]} 32. Rd6 {[%clk 0:00:27]}  Ke7 {[%clk 0:00:25]} 33. Rd3 {[%clk 0:00:23]}  Rbc8 {[%clk 0:00:22]} 34. Re1+ {[%clk 0:00:19]}  Kf6 {[%clk 0:00:22]} 35. Rd6+ {[%clk 0:00:18]}  Kg5 {[%clk 0:00:23]} 36. Bf5 {[%clk 0:00:14]}  Kf4 {[%clk 0:00:20]} 37. Bxc8 {[%clk 0:00:13]}  Rxc8 {[%clk 0:00:17]} 38. Rf6+ {[%clk 0:00:13]}  Kg3 {[%clk 0:00:16]} 39. g5 {[%clk 0:00:13]}  Kf2 {[%clk 0:00:15]} 40. Rc1 {[%clk 0:00:12]}  Rg8 {[%clk 0:00:15]} 41. g6 {[%clk 0:00:11]}  Kg3 {[%clk 0:00:15]} 42. f4 {[%clk 0:00:11]}  Kg4 {[%clk 0:00:14]} 43. Rg1+ {[%clk 0:00:11]}  Kf3 {[%clk 0:00:07]} 44. g7 {[%clk 0:00:11]}  Kf2 {[%clk 0:00:06]} 45. Rfg6 {[%clk 0:00:04]}  Bd5 {[%clk 0:00:03]} 46. R6g3 {[%clk 0:00:01]}  Be4+ {[%clk 0:00:03]} 47. Ka1 {[%clk 0:00:02]}  Rc8 {[%clk 0:00:03]} 48. g8=Q {[%clk 0:00:02]}  Rc1+ {[%clk 0:00:03]} 49. Rxc1 {[%clk 0:00:01]}  Bf3 {[%clk 0:00:04]} 50. Rc3 {[%clk 0:00:02]}  Ke2 {[%clk 0:00:04]} 51. Rcxf3 {[%clk 0:00:02]}  Ke1 {[%clk 0:00:05]} 52. Re3+ {[%clk 0:00:03]}  Kf2 {[%clk 0:00:05]} 53. Qf8 {[%clk 0:00:04]}  Kf1 {[%clk 0:00:05]} 54. Qg8 {[%clk 0:00:05]}  Kf2 {[%clk 0:00:06]} 55. f5 {[%clk 0:00:06]}  Kf1 {[%clk 0:00:07]} 56. Re4 {[%clk 0:00:06]}  Kf2 {[%clk 0:00:08]} 57. Rgg4 {[%clk 0:00:06]}  Kf1 {[%clk 0:00:08]} 58. f6 {[%clk 0:00:07]}  Kf2 {[%clk 0:00:09]} 59. f7 {[%clk 0:00:08]}  Kf1 {[%clk 0:00:10]} 60. f8=Q# {[%clk 0:00:09]} 1-0


[Site "https://www.chess.com"]